[Event "47th GRE-chT 2019"]
[Site "Patra"]
[Date "2019.07.04"]
[Round "4.5"]
[White "Paehtz, Elisabeth"]
[Black "Daulyte-Cornette, Deimante"]
[Result "1-0"]
[ECO "D37"]
[WhiteElo "2473"]
[BlackElo "2444"]
[Annotator "ChessBase"]
[PlyCount "145"]
[EventDate "2019.07.02"]
[EventCountry "GRE"]
[SourceTitle "playchess.com"]
[Source "ChessBase"]
[SourceQuality "1"]
[TimeControl "5400+30"]

1. d4 {[%emt 0:00:00]} d5 {[%emt 0:00:00]} 2. Nf3 {[%emt 0:00:00]} e6 {[%emt 0:00:00]} 3. c4 {[%emt 0:00:00]} a6 {[%emt 0:00:13]} 4. cxd5 {[%emt 0:00:07]} exd5 {[%emt 0:00:08]} 5. Nc3 {[%emt 0:00:19]} Nf6 {[%emt 0:00:26]} 6. Bg5 {[%emt 0:02:59]} Be6 {[%emt 0:00:25]} 7. Qb3 {[%emt 0:04:16]} b5 {[%emt 0:02:52]} 8. e3 {[%emt 0:00:46]} Nbd7 {[%emt 0:01:26]} 9. Qd1 {[%emt 0:05:01]} Bd6 {[%emt 0:06:38]} 10. Bd3 {[%emt 0:00:29]} O-O {[%emt 0:12:58]} 11. O-O {[%emt 0:00:56]} c6 {[%emt 0:00:45]} 12. Rc1 {[%emt 0:03:47]} Qb8 {[%emt 0:12:14]} 13. Ne2 {[%emt 0:11:32]} Qc7 {[%emt 0:14:21]} 14. h3 {[%emt 0:10:14]} Ne4 {[%emt 0:08:06]} 15. Qc2 {[%emt 0:01:40]} Rac8 {[%emt 0:01:04]} 16. Bf4 {[%emt 0:10:30]} h6 {[%emt 0:05:51]} 17. Nd2 {[%emt 0:06:06]} Nxd2 {[%emt 0:04:58]} 18. Qxd2 {[%emt 0:00:11]} Nf6 {[%emt 0:00:23]} 19. Bxd6 {[%emt 0:00:20]} Qxd6 {[%emt 0:00:05]} 20. f3 {[%emt 0:01:38]} c5 {[%emt 0:07:04]} 21. dxc5 {[%emt 0:00:26]} Rxc5 {[%emt 0:00:06]} 22. Rxc5 {[%emt 0:00:59]} Qxc5 {[%emt 0:00:06]} 23. Rc1 {[%emt 0:00:20]} Qb6 {[%emt 0:00:25]} 24. Nd4 {[%emt 0:00:15]} Rc8 {[%emt 0:00:29]} 25. Rxc8+ {[%emt 0:00:38]} Bxc8 {[%emt 0:00:05]} 26. Qc3 {[%emt 0:05:52]} Bd7 {[%emt 0:00:28]} 27. b4 {[%emt 0:06:16]} Kf8 {[%emt 0:09:12]} 28. Kf2 {[%emt 0:00:24]} Qd6 {[%emt 0:00:38]} 29. Ne2 {[%emt 0:07:35]} Ke7 {[%emt 0:06:21]} 30. Qd4 {[%emt 0:00:47]} Qc7 {[%emt 0:01:10]} 31. Nc3 {[%emt 0:09:09]} Qd6 {[%emt 0:00:21]} 32. a3 {[%emt 0:01:39]} Bc6 {[%emt 0:02:12]} 33. Ne2 {[%emt 0:01:00]} Bd7 {[%emt 0:00:24]} 34. Qa7 {[%emt 0:01:23]} Ne8 {[%emt 0:02:24]} 35. Nd4 {[%emt 0:03:06]} g6 {[%emt 0:00:59]} 36. Nb3 {[%emt 0:02:45]} Nc7 {[%emt 0:00:08]} 37. Nc5 {[%emt 0:01:41]} h5 {[%emt 0:01:07]} 38. Qb8 {[%emt 0:00:42]} Bc6 {[%emt 0:01:25]} 39. Qh8 {[%emt 0:01:39]} Qf6 {[%emt 0:00:41]} 40. Qc8 {[%emt 0:00:00]} Qd6 {[%emt 0:00:00]} 41. Qh8 {[%emt 0:00:00]} a5 {[%emt 0:00:00]} 42. Qd4 {[%emt 0:00:00]} axb4 {[%emt 0:00:00]} 43. axb4 {[%emt 0:00:00]} Qf6 {[%emt 0:00:00]} 44. h4 {[%emt 0:00:00]} Qxd4 {[%emt 0:00:00]} 45. exd4 {[%emt 0:00:00]} Ne8 {[%emt 0:00:00]} 46. Ke3 {[%emt 0:00:00]} Nd6 {[%emt 0:00:00]} 47. Kf4 {[%emt 0:00:00]} Kf6 {[%emt 0:00:00]} 48. g4 {[%emt 0:00:00]} Ne8 {[%emt 0:01:20]} 49. Be2 {[%emt 0:00:00]} Nd6 {[%emt 0:01:17]} 50. Bf1 {[%emt 0:00:00]} Ne8 {[%emt 0:00:22]} 51. Bh3 {[%emt 0:01:15]} Nd6 {[%emt 0:00:39]} 52. gxh5 {[%emt 0:01:14]} gxh5 {[%emt 0:00:03]} 53. Nd3 {[%emt 0:00:57]} Be8 {[%emt 0:00:37]} 54. Ke3 {[%emt 0:01:11]} Nc4+ {[%emt 0:01:07]} 55. Ke2 {[%emt 0:00:05]} Na3 {[%emt 0:01:29]} 56. Kd2 {[%emt 0:00:18]} Nc4+ {[%emt 0:00:59]} 57. Kc3 {[%emt 0:00:06]} Kg7 {[%emt 0:00:44]} 58. Nf4 {[%emt 0:00:09]} Bc6 {[%emt 0:00:38]} 59. Nxh5+ {[%emt 0:00:12]} Kh6 {[%emt 0:00:02]} 60. Ng3 {[%emt 0:01:13]} Nd6 {[%emt 0:00:32]} 61. Kd3 {[%emt 0:00:26]} Nc4 {[%emt 0:00:17]} 62. Nf5+ {[%emt 0:00:19]} Kh7 {[%emt 0:00:10]} 63. Ne7 {[%emt 0:00:45]} Bb7 {[%emt 0:00:15]} 64. Bd7 {[%emt 0:00:58]} Nd6 {[%emt 0:00:04]} 65. Nf5 {[%emt 0:01:08]} Nc4 {[%emt 0:02:06]} 66. Bxb5 {[%emt 0:00:36]} Kg6 {[%emt 0:00:43]} 67. Ne7+ {[%emt 0:01:09]} Kh5 {[%emt 0:00:03]} 68. Bxc4 {[%emt 0:00:21]} dxc4+ {[%emt 0:00:04]} 69. Kxc4 {[%emt 0:00:04]} Bxf3 {[%emt 0:00:05]} 70. d5 {[%emt 0:00:17]} Kxh4 {[%emt 0:01:27]} 71. d6 {[%emt 0:00:34]} Bg4 {[%emt 0:00:04]} 72. b5 {[%emt 0:00:14]} Kg5 {[%emt 0:00:08]} 73. b6 {[%emt 0:00:04]} 1-0

[Event "47th GRE-chT 2019"]
[Site "Patra"]
[Date "2019.07.04"]
[Round "4.5"]
[White "Kiolbasa, Oliwia"]
[Black "Hristodoulaki, Antonia"]
[Result "1/2-1/2"]
[ECO "C11"]
[WhiteElo "2239"]
[BlackElo "2033"]
[Annotator "NA"]
[PlyCount "92"]
[EventDate "2019.07.02"]
[EventCountry "GRE"]
[SourceTitle "playchess.com"]
[Source "ChessBase"]
[SourceQuality "1"]
[TimeControl "5400+30"]

1. e4 {[%emt 0:00:00]} e6 {[%emt 0:00:11]} 2. d4 {[%emt 0:00:00]} d5 {[%emt 0:00:06]} 3. Nc3 {[%emt 0:00:00]} Nf6 {[%emt 0:00:07]} 4. Bg5 {[%emt 0:09:15]} dxe4 {[%emt 0:00:17]} 5. Nxe4 {[%emt 0:00:27]} Be7 {[%emt 0:00:09]} 6. Bxf6 {[%emt 0:00:10]} gxf6 {[%emt 0:00:07]} 7. Nf3 {[%emt 0:02:03]} f5 {[%emt 0:00:43]} 8. Nc3 {[%emt 0:00:07]} a6 {[%emt 0:00:09]} 9. g3 {[%emt 0:01:47]} b5 {[%emt 0:00:30]} 10. Bg2 {[%emt 0:01:16]} Bb7 {[%emt 0:00:34]} 11. O-O {[%emt 0:00:23]} O-O {[%emt 0:00:07]} 12. a4 {[%emt 0:09:31]} b4 {[%emt 0:02:40]} 13. Ne2 {[%emt 0:00:19]} c5 {[%emt 0:02:37]} 14. dxc5 {[%emt 0:06:22]} Bxc5 {[%emt 0:03:44]} 15. Qxd8 {[%emt 0:04:21]} Rxd8 {[%emt 0:00:10]} 16. Rfd1 {[%emt 0:00:11]} Nd7 {[%emt 0:11:36]} 17. Nf4 {[%emt 0:35:52]} Nb6 {[%emt 0:17:02]} 18. Ne5 {[%emt 0:12:23]} Bxg2 {[%emt 0:06:22]} 19. Kxg2 {[%emt 0:00:27]} a5 {[%emt 0:23:42]} 20. Rxd8+ {[%emt 0:07:20]} Rxd8 {[%emt 0:00:02]} 21. Nc6 {[%emt 0:00:05]} Rd2 {[%emt 0:07:35]} 22. Nd3 {[%emt 0:00:08]} Rxc2 {[%emt 0:03:03]} 23. Nxa5 {[%emt 0:00:16]} Bd4 {[%emt 0:03:08]} 24. Nb3 {[%emt 0:03:26]} Bxb2 {[%emt 0:01:32]} 25. Ra2 {[%emt 0:00:34]} Rc3 {[%emt 0:00:26]} 26. Ndc5 {[%emt 0:00:18]} Bc1 {[%emt 0:05:12]} 27. a5 {[%emt 0:00:11]} Na8 {[%emt 0:04:41]} 28. Nxc1 {[%emt 0:02:48]} Rxc5 {[%emt 0:00:56]} 29. Nd3 {[%emt 0:01:43]} Rb5 {[%emt 0:02:36]} 30. a6 {[%emt 0:00:28]} b3 {[%emt 0:01:26]} 31. Rb2 {[%emt 0:00:13]} Nc7 {[%emt 0:01:25]} 32. a7 {[%emt 0:00:26]} Rb7 {[%emt 0:01:24]} 33. Nc5 {[%emt 0:01:06]} Rxa7 {[%emt 0:00:17]} 34. Rxb3 {[%emt 0:00:06]} Nd5 {[%emt 0:00:47]} 35. Nd3 {[%emt 0:00:49]} Kg7 {[%emt 0:00:37]} 36. h4 {[%emt 0:02:17]} Rc7 {[%emt 0:00:39]} 37. Ne5 {[%emt 0:00:44]} Nf6 {[%emt 0:01:13]} 38. Rb2 {[%emt 0:00:28]} Ne4 {[%emt 0:00:34]} 39. Nf3 {[%emt 0:00:19]} Kf6 {[%emt 0:00:24]} 40. Nd2 {[%emt 0:00:00]} Nxd2 {[%emt 0:00:00]} 41. Rxd2 {[%emt 0:00:00]} h5 {[%emt 0:00:00]} 42. Ra2 {[%emt 0:00:00]} Rd7 {[%emt 0:00:00]} 43. Rb2 {[%emt 0:00:00]} f4 {[%emt 0:00:00]} 44. gxf4 {[%emt 0:00:00]} Kf5 {[%emt 0:00:00]} 45. Kg3 {[%emt 0:00:00]} f6 {[%emt 0:00:00]} 46. Rb5+ {[%emt 0:00:00]} Rd5 {[%emt 0:00:00]} 1/2-1/2

[Event "47th GRE-chT 2019"]
[Site "Patra"]
[Date "2019.07.04"]
[Round "4.6"]
[White "Kalyva, Kyriaki"]
[Black "Tsolakidou, Stavroula"]
[Result "0-1"]
[ECO "E27"]
[WhiteElo "1869"]
[BlackElo "2423"]
[Annotator "NA"]
[PlyCount "91"]
[EventDate "2019.07.02"]
[EventCountry "GRE"]
[SourceTitle "playchess.com"]
[Source "ChessBase"]
[SourceQuality "1"]
[TimeControl "5400+30"]

1. d4 {[%emt 0:00:00]} Nf6 {[%emt 0:00:00]} 2. c4 {[%emt 0:00:00]} e6 {[%emt 0:00:00]} 3. Nc3 {[%emt 0:00:00]} Bb4 {[%emt 0:00:00]} 4. a3 {[%emt 0:00:00]} Bxc3+ {[%emt 0:00:00]} 5. bxc3 {[%emt 0:00:08]} O-O {[%emt 0:00:00]} 6. f3 {[%emt 0:01:15]} Nh5 {[%emt 0:10:51]} 7. Nh3 {[%emt 0:00:12]} f5 {[%emt 0:02:36]} 8. Bg5 {[%emt 0:00:33]} Nf6 {[%emt 0:02:13]} 9. e3 {[%emt 0:10:25]} h6 {[%emt 0:03:30]} 10. Bh4 {[%emt 0:02:15]} d6 {[%emt 0:02:36]} 11. Bd3 {[%emt 0:02:49]} Qe8 {[%emt 0:09:09]} 12. Qc2 {[%emt 0:13:08]} e5 {[%emt 0:21:08]} 13. O-O {[%emt 0:10:15]} Nh7 {[%emt 0:08:13]} 14. Be1 {[%emt 0:05:41]} Nc6 {[%emt 0:01:14]} 15. Bd2 {[%emt 0:01:37]} Kh8 {[%emt 0:04:00]} 16. Nf2 {[%emt 0:00:53]} Bd7 {[%emt 0:05:33]} 17. f4 {[%emt 0:20:32]} exf4 {[%emt 0:08:53]} 18. e4 {[%emt 0:12:29]} g5 {[%emt 0:00:35]} 19. exf5 {[%emt 0:01:45]} Qf7 {[%emt 0:03:49]} 20. Ne4 {[%emt 0:01:29]} Bxf5 {[%emt 0:00:15]} 21. g3 {[%emt 0:07:44]} fxg3 {[%emt 0:03:53]} 22. Nxg3 {[%emt 0:00:06]} Bxd3 {[%emt 0:00:04]} 23. Qxd3 {[%emt 0:00:19]} Qd7 {[%emt 0:00:11]} 24. Nf5 {[%emt 0:01:03]} Rf6 {[%emt 0:03:09]} 25. Rf2 {[%emt 0:05:32]} Ne7 {[%emt 0:04:11]} 26. Nxe7 {[%emt 0:00:04]} Qxe7 {[%emt 0:00:09]} 27. Re1 {[%emt 0:00:41]} Qg7 {[%emt 0:01:05]} 28. Be3 {[%emt 0:01:23]} Re8 {[%emt 0:01:30]} 29. Ree2 {[%emt 0:00:51]} Rxf2 {[%emt 0:00:29]} 30. Bxf2 {[%emt 0:01:01]} Rxe2 {[%emt 0:00:05]} 31. Qxe2 {[%emt 0:00:16]} Qf7 {[%emt 0:01:03]} 32. d5 {[%emt 0:00:14]} b6 {[%emt 0:00:25]} 33. Bd4+ {[%emt 0:00:03]} Kg8 {[%emt 0:01:12]} 34. Qg4 {[%emt 0:01:06]} Nf8 {[%emt 0:00:46]} 35. h4 {[%emt 0:00:53]} Qe7 {[%emt 0:01:19]} 36. Qh5 {[%emt 0:00:28]} Qe1+ {[%emt 0:00:22]} 37. Kg2 {[%emt 0:00:47]} Qxh4 {[%emt 0:00:06]} 38. Qxh4 {[%emt 0:00:03]} gxh4 {[%emt 0:00:12]} 39. Bf6 {[%emt 0:00:34]} Nd7 {[%emt 0:00:00]} 40. Bxh4 {[%emt 0:00:00]} Ne5 {[%emt 0:00:00]} 41. Bd8 {[%emt 0:00:00]} Kf7 {[%emt 0:00:00]} 42. Kf2 {[%emt 0:00:00]} Ke8 {[%emt 0:00:00]} 43. Bh4 {[%emt 0:00:00]} Nxc4 {[%emt 0:00:00]} 44. Ke2 {[%emt 0:00:00]} Nxa3 {[%emt 0:00:00]} 45. Kd3 {[%emt 0:00:00]} b5 {[%emt 0:03:07]} 46. Kd4 {[%emt 1:23:47]} 0-1

[Event "47th GRE-chT 2019"]
[Site "Patra"]
[Date "2019.07.04"]
[Round "4.6"]
[White "Chrysogelou, Athanasia-Panagiota"]
[Black "Strati, Betty - Anna"]
[Result "1-0"]
[ECO "E01"]
[WhiteElo "1770"]
[BlackElo "1710"]
[Annotator "NA"]
[PlyCount "103"]
[EventDate "2019.07.02"]
[EventCountry "GRE"]
[SourceTitle "playchess.com"]
[Source "ChessBase"]
[SourceQuality "1"]
[TimeControl "5400+30"]

1. d4 {[%emt 0:00:00]} Nf6 {[%emt 0:00:00]} 2. c4 {[%emt 0:00:00]} e6 {[%emt 0:00:00]} 3. g3 {[%emt 0:00:18]} d5 {[%emt 0:00:16]} 4. Bg2 {[%emt 0:00:52]} Bb4+ {[%emt 0:02:10]} 5. Bd2 {[%emt 0:02:52]} Be7 {[%emt 0:00:58]} 6. Nf3 {[%emt 0:01:27]} O-O {[%emt 0:01:03]} 7. Qc2 {[%emt 0:01:32]} c6 {[%emt 0:01:24]} 8. O-O {[%emt 0:00:38]} b6 {[%emt 0:02:18]} 9. b3 {[%emt 0:03:32]} Bb7 {[%emt 0:01:26]} 10. Rd1 {[%emt 0:01:46]} Nbd7 {[%emt 0:01:31]} 11. Bf4 {[%emt 0:03:53]} Nh5 {[%emt 0:02:48]} 12. Bd2 {[%emt 0:05:27]} Nhf6 {[%emt 0:01:49]} 13. Bc3 {[%emt 0:03:12]} Rc8 {[%emt 0:04:30]} 14. Nbd2 {[%emt 0:02:46]} c5 {[%emt 0:03:48]} 15. dxc5 {[%emt 0:03:48]} Nxc5 {[%emt 0:09:09]} 16. Nf1 {[%emt 0:07:20]} Nce4 {[%emt 0:07:00]} 17. Bb2 {[%emt 0:03:24]} b5 {[%emt 0:05:27]} 18. Ne3 {[%emt 0:07:06]} Bc5 {[%emt 0:05:17]} 19. Nd4 {[%emt 0:09:25]} Qb6 {[%emt 0:08:55]} 20. Qb1 {[%emt 0:08:56]} e5 {[%emt 0:05:36]} 21. Nxd5 {[%emt 0:11:51]} Bxd5 {[%emt 0:05:19]} 22. cxd5 {[%emt 0:00:05]} Nxf2 {[%emt 0:14:12]} 23. Kxf2 {[%emt 0:02:04]} exd4 {[%emt 0:00:36]} 24. Qd3 {[%emt 0:03:11]} Ng4+ {[%emt 0:03:14]} 25. Kg1 {[%emt 0:02:06]} Ne5 {[%emt 0:04:35]} 26. Qe4 {[%emt 0:01:13]} Rfe8 {[%emt 0:02:17]} 27. Qf5 {[%emt 0:03:25]} g6 {[%emt 0:03:23]} 28. Qh3 {[%emt 0:03:50]} d3+ {[%emt 0:02:35]} 29. e3 {[%emt 0:01:17]} Bxe3+ {[%emt 0:00:53]} 30. Kh1 {[%emt 0:00:03]} Bd4 {[%emt 0:00:49]} 31. Rac1 {[%emt 0:02:33]} Rxc1 {[%emt 0:00:56]} 32. Bxc1 {[%emt 0:00:05]} Qd6 {[%emt 0:01:06]} 33. Qh4 {[%emt 0:01:21]} Bc3 {[%emt 0:00:35]} 34. Qe4 {[%emt 0:01:22]} Qd7 {[%emt 0:00:29]} 35. Bf4 {[%emt 0:01:28]} f5 {[%emt 0:00:28]} 36. Qe3 {[%emt 0:00:04]} Ng4 {[%emt 0:00:15]} 37. Qf3 {[%emt 0:00:04]} Re2 {[%emt 0:00:45]} 38. Rf1 {[%emt 0:02:36]} b4 {[%emt 0:00:29]} 39. h3 {[%emt 0:00:25]} Nf6 {[%emt 0:00:33]} 40. Qxd3 {[%emt 0:00:00]} Rxa2 {[%emt 0:00:00]} 41. Qc4 {[%emt 0:00:00]} Kg7 {[%emt 0:00:00]} 42. d6 {[%emt 0:00:00]} Bd2 {[%emt 0:00:00]} 43. Bc6 {[%emt 0:00:00]} Qd8 {[%emt 0:00:00]} 44. Be5 {[%emt 0:00:00]} Bc3 {[%emt 0:00:00]} 45. Bxf6+ {[%emt 0:00:00]} Bxf6 {[%emt 0:00:00]} 46. Qxb4 {[%emt 0:00:00]} Be5 {[%emt 0:00:00]} 47. Qb7+ {[%emt 0:00:00]} Kf6 {[%emt 0:00:00]} 48. d7 {[%emt 0:00:53]} Bxg3 {[%emt 0:00:00]} 49. Rd1 {[%emt 0:00:43]} Ke7 {[%emt 0:00:00]} 50. Qb4+ {[%emt 0:00:53]} Kf6 {[%emt 0:00:07]} 51. Qc3+ {[%emt 0:00:27]} Be5 {[%emt 0:01:07]} 52. Rd6+ {[%emt 0:00:34]} 1-0

[Event "47th GRE-chT 2019"]
[Site "Patra"]
[Date "2019.07.04"]
[Round "4.7"]
[White "Tsivelekidou, Evgenia"]
[Black "Kyriakidou, Chrysa"]
[Result "1-0"]
[ECO "D11"]
[WhiteElo "1956"]
[BlackElo "1338"]
[Annotator "NA"]
[PlyCount "61"]
[EventDate "2019.07.02"]
[EventCountry "GRE"]
[SourceTitle "playchess.com"]
[Source "ChessBase"]
[SourceQuality "1"]
[TimeControl "5400+30"]

1. d4 {[%emt 0:00:00]} d5 {[%emt 0:00:00]} 2. c4 {[%emt 0:00:00]} c6 {[%emt 0:00:00]} 3. Nf3 {[%emt 0:00:00]} Nf6 {[%emt 0:00:00]} 4. Nbd2 {[%emt 0:00:00]} Bf5 {[%emt 0:00:03]} 5. Nh4 {[%emt 0:00:00]} Bg6 {[%emt 0:00:42]} 6. Qb3 {[%emt 0:00:02]} Qc7 {[%emt 0:01:36]} 7. Nxg6 {[%emt 0:00:48]} hxg6 {[%emt 0:00:08]} 8. g3 {[%emt 0:00:14]} e6 {[%emt 0:00:16]} 9. Bg2 {[%emt 0:00:09]} Nbd7 {[%emt 0:00:38]} 10. O-O {[%emt 0:00:51]} Be7 {[%emt 0:04:07]} 11. e4 {[%emt 0:01:28]} dxe4 {[%emt 0:09:23]} 12. Nxe4 {[%emt 0:00:08]} O-O-O {[%emt 0:00:13]} 13. Rd1 {[%emt 0:09:44]} Qb6 {[%emt 0:02:19]} 14. Qc2 {[%emt 0:14:09]} Nxe4 {[%emt 0:00:28]} 15. Bxe4 {[%emt 0:01:01]} Nf6 {[%emt 0:02:34]} 16. Bf3 {[%emt 0:06:19]} Rxd4 {[%emt 0:06:01]} 17. Rxd4 {[%emt 0:01:40]} Qxd4 {[%emt 0:00:05]} 18. Be3 {[%emt 0:02:34]} Qd8 {[%emt 0:09:02]} 19. Qa4 {[%emt 0:08:12]} a5 {[%emt 0:23:24]} 20. a3 {[%emt 0:12:14]} Nd7 {[%emt 0:05:53]} 21. b4 {[%emt 0:09:35]} Bg5 {[%emt 0:05:41]} 22. Bxg5 {[%emt 0:10:23]} Qxg5 {[%emt 0:00:13]} 23. Bxc6 {[%emt 0:01:31]} Nf6 {[%emt 0:05:55]} 24. Bg2 {[%emt 0:02:28]} Qe5 {[%emt 0:09:27]} 25. Rd1 {[%emt 0:02:29]} Rh5 {[%emt 0:01:20]} 26. Qb3 {[%emt 0:04:09]} Qc7 {[%emt 0:03:36]} 27. Qe3 {[%emt 0:03:09]} Re5 {[%emt 0:04:59]} 28. Qa7 {[%emt 0:04:37]} Nd7 {[%emt 0:02:50]} 29. Bxb7+ {[%emt 0:00:55]} Qxb7 {[%emt 0:01:32]} 30. Qxb7+ {[%emt 0:00:04]} Kxb7 {[%emt 0:00:07]} 31. Rxd7+ {[%emt 0:00:04]} 1-0

[Event "47th GRE-chT 2019"]
[Site "Patra"]
[Date "2019.07.04"]
[Round "4.8"]
[White "Katopodis, Dimitrios"]
[Black "Loutragotis, Dimitrios"]
[Result "1/2-1/2"]
[ECO "E68"]
[WhiteElo "2279"]
[BlackElo "2287"]
[Annotator "NA"]
[PlyCount "75"]
[EventDate "2019.07.02"]
[EventCountry "GRE"]
[SourceTitle "playchess.com"]
[Source "ChessBase"]
[SourceQuality "1"]
[TimeControl "5400+30"]

1. d4 {[%emt 0:00:00]} Nf6 {[%emt 0:00:00]} 2. c4 {[%emt 0:00:00]} g6 {[%emt 0:00:00]} 3. Nf3 {[%emt 0:00:00]} Bg7 {[%emt 0:00:00]} 4. g3 {[%emt 0:00:00]} O-O {[%emt 0:00:00]} 5. Bg2 {[%emt 0:00:00]} d6 {[%emt 0:00:08]} 6. O-O {[%emt 0:00:00]} Nbd7 {[%emt 0:00:08]} 7. Nc3 {[%emt 0:00:00]} e5 {[%emt 0:00:37]} 8. e4 {[%emt 0:00:00]} Re8 {[%emt 0:00:37]} 9. b3 {[%emt 0:00:17]} Nb6 {[%emt 0:11:46]} 10. d5 {[%emt 0:03:52]} a5 {[%emt 0:01:24]} 11. Be3 {[%emt 0:00:56]} Nfd7 {[%emt 0:10:13]} 12. Qc2 {[%emt 0:00:42]} Nc5 {[%emt 0:00:34]} 13. Nd2 {[%emt 0:04:53]} f5 {[%emt 0:03:27]} 14. exf5 {[%emt 0:07:01]} gxf5 {[%emt 0:01:08]} 15. f3 {[%emt 0:00:22]} Bd7 {[%emt 0:02:43]} 16. a3 {[%emt 0:05:13]} Qf6 {[%emt 0:02:16]} 17. Rac1 {[%emt 0:02:36]} a4 {[%emt 0:06:42]} 18. b4 {[%emt 0:03:31]} Nb3 {[%emt 0:00:50]} 19. c5 {[%emt 0:05:22]} Nxc1 {[%emt 0:04:54]} 20. Rxc1 {[%emt 0:02:12]} Nc8 {[%emt 0:02:22]} 21. Nc4 {[%emt 0:06:09]} Bh6 {[%emt 0:06:03]} 22. Qd2 {[%emt 0:01:58]} Bxe3+ {[%emt 0:17:47]} 23. Qxe3 {[%emt 0:00:54]} b5 {[%emt 0:07:31]} 24. c6 {[%emt 0:09:48]} Bxc6 {[%emt 0:00:35]} 25. dxc6 {[%emt 0:00:54]} bxc4 {[%emt 0:00:08]} 26. Nd5 {[%emt 0:00:09]} Qf7 {[%emt 0:03:13]} 27. f4 {[%emt 0:04:50]} Nb6 {[%emt 0:04:25]} 28. Nxb6 {[%emt 0:03:27]} cxb6 {[%emt 0:00:05]} 29. fxe5 {[%emt 0:11:36]} Rxe5 {[%emt 0:02:38]} 30. Qxb6 {[%emt 0:00:39]} Rae8 {[%emt 0:01:43]} 31. Qd4 {[%emt 0:03:26]} d5 {[%emt 0:10:14]} 32. b5 {[%emt 0:00:53]} Qe6 {[%emt 0:01:04]} 33. c7 {[%emt 0:03:04]} Re1+ {[%emt 0:00:11]} 34. Rxe1 {[%emt 0:00:06]} Qxe1+ {[%emt 0:00:02]} 35. Bf1 {[%emt 0:00:08]} c3 {[%emt 0:01:12]} 36. Qxd5+ {[%emt 0:00:35]} Kg7 {[%emt 0:00:25]} 37. Qc5 {[%emt 0:08:00]} Qd2 {[%emt 0:00:51]} 38. c8=Q {[%emt 0:07:32]} 1/2-1/2

[Event "47th GRE-chT 2019"]
[Site "Patra"]
[Date "2019.07.04"]
[Round "4.8"]
[White "Androutsopoulos-Agiotatos, Vasil"]
[Black "Zisiadis, Dimitrios"]
[Result "1-0"]
[ECO "E94"]
[WhiteElo "2063"]
[BlackElo "2082"]
[Annotator "NA"]
[PlyCount "51"]
[EventDate "2019.07.02"]
[EventCountry "GRE"]
[SourceTitle "playchess.com"]
[Source "ChessBase"]
[SourceQuality "1"]
[TimeControl "5400+30"]

1. e4 {[%emt 0:00:00]} g6 {[%emt 0:00:00]} 2. d4 {[%emt 0:00:00]} Bg7 {[%emt 0:00:00]} 3. c4 {[%emt 0:00:03]} d6 {[%emt 0:00:00]} 4. Nc3 {[%emt 0:00:59]} Nc6 {[%emt 0:04:44]} 5. Nge2 {[%emt 0:01:37]} e5 {[%emt 0:04:42]} 6. Be3 {[%emt 0:07:48]} Nf6 {[%emt 0:06:03]} 7. f3 {[%emt 0:16:10]} exd4 {[%emt 0:00:07]} 8. Nxd4 {[%emt 0:00:08]} Bd7 {[%emt 0:04:51]} 9. Be2 {[%emt 0:00:18]} O-O {[%emt 0:02:41]} 10. O-O {[%emt 0:01:19]} Re8 {[%emt 0:00:54]} 11. Qd2 {[%emt 0:10:29]} Nh5 {[%emt 0:34:02]} 12. f4 {[%emt 0:08:52]} Nf6 {[%emt 0:00:47]} 13. Bf3 {[%emt 0:31:47]} Na5 {[%emt 0:14:51]} 14. Qd3 {[%emt 0:02:51]} Bg4 {[%emt 0:02:09]} 15. Rfe1 {[%emt 0:09:42]} a6 {[%emt 0:00:37]} 16. h3 {[%emt 0:00:21]} Bxf3 {[%emt 0:00:02]} 17. Nxf3 {[%emt 0:01:59]} b5 {[%emt 0:08:11]} 18. cxb5 {[%emt 0:00:05]} axb5 {[%emt 0:00:08]} 19. Nxb5 {[%emt 0:02:55]} Nxe4 {[%emt 0:01:29]} 20. Bd4 {[%emt 0:01:35]} f5 {[%emt 0:01:11]} 21. Nc3 {[%emt 0:00:56]} Nf6 {[%emt 0:01:47]} 22. b4 {[%emt 0:00:24]} Nb7 {[%emt 0:02:04]} 23. Qc4+ {[%emt 0:00:37]} d5 {[%emt 0:00:10]} 24. Rxe8+ {[%emt 0:00:26]} Qxe8 {[%emt 0:01:01]} 25. Nxd5 {[%emt 0:00:25]} Qf7 {[%emt 0:00:09]} 26. Bxf6 {[%emt 0:00:45]} 1-0

[Event "47th GRE-chT 2019"]
[Site "Patra"]
[Date "2019.07.04"]
[Round "4.9"]
[White "Stefanou, Dimitrios"]
[Black "Koutlas, Nikolaos"]
[Result "1-0"]
[ECO "A61"]
[WhiteElo "1975"]
[BlackElo "1969"]
[Annotator "NA"]
[PlyCount "85"]
[EventDate "2019.07.02"]
[EventCountry "GRE"]
[SourceTitle "playchess.com"]
[Source "ChessBase"]
[SourceQuality "1"]
[TimeControl "5400+30"]

1. d4 {[%emt 0:00:00]} Nf6 {[%emt 0:00:00]} 2. Nf3 {[%emt 0:00:00]} e6 {[%emt 0:00:00]} 3. c4 {[%emt 0:00:07]} c5 {[%emt 0:00:22]} 4. d5 {[%emt 0:01:25]} exd5 {[%emt 0:00:28]} 5. cxd5 {[%emt 0:00:05]} d6 {[%emt 0:00:05]} 6. Nc3 {[%emt 0:00:30]} g6 {[%emt 0:00:13]} 7. Bf4 {[%emt 0:10:06]} Bg7 {[%emt 0:01:08]} 8. Qa4+ {[%emt 0:01:14]} Bd7 {[%emt 0:00:17]} 9. Qb3 {[%emt 0:00:08]} Qc7 {[%emt 0:00:10]} 10. e3 {[%emt 0:01:17]} O-O {[%emt 0:14:06]} 11. h3 {[%emt 0:01:32]} Na6 {[%emt 0:02:51]} 12. Be2 {[%emt 0:02:56]} b5 {[%emt 0:08:10]} 13. Bxb5 {[%emt 0:38:31]} Rab8 {[%emt 0:00:31]} 14. O-O {[%emt 0:01:57]} Nh5 {[%emt 0:06:03]} 15. a4 {[%emt 0:02:02]} Nxf4 {[%emt 0:00:37]} 16. exf4 {[%emt 0:00:06]} Nb4 {[%emt 0:02:50]} 17. Qd1 {[%emt 0:05:30]} a6 {[%emt 0:05:51]} 18. Bc4 {[%emt 0:03:30]} Rfe8 {[%emt 0:13:11]} 19. Qd2 {[%emt 0:00:58]} Re7 {[%emt 0:05:00]} 20. Rfe1 {[%emt 0:01:15]} Rbe8 {[%emt 0:00:29]} 21. Rxe7 {[%emt 0:03:09]} Rxe7 {[%emt 0:00:03]} 22. Re1 {[%emt 0:00:58]} Qd8 {[%emt 0:01:09]} 23. Re3 {[%emt 0:03:14]} Qe8 {[%emt 0:05:05]} 24. Bb3 {[%emt 0:06:47]} Bf5 {[%emt 0:08:07]} 25. g4 {[%emt 0:03:18]} Rxe3 {[%emt 0:06:22]} 26. fxe3 {[%emt 0:00:11]} Bd7 {[%emt 0:01:26]} 27. Kh2 {[%emt 0:03:34]} Qb8 {[%emt 0:04:47]} 28. Bc4 {[%emt 0:01:06]} Qe8 {[%emt 0:00:09]} 29. Bb3 {[%emt 0:00:52]} Qb8 {[%emt 0:00:56]} 30. Bc4 {[%emt 0:00:24]} Qe8 {[%emt 0:00:06]} 31. Bb3 {[%emt 0:00:15]} Qb8 {[%emt 0:00:19]} 32. Bd1 {[%emt 0:00:38]} Qe8 {[%emt 0:02:03]} 33. e4 {[%emt 0:04:29]} h5 {[%emt 0:05:48]} 34. gxh5 {[%emt 0:00:25]} gxh5 {[%emt 0:01:25]} 35. Qg2 {[%emt 0:00:48]} Nd3 {[%emt 0:01:53]} 36. Qd2 {[%emt 0:01:04]} Bxc3 {[%emt 0:01:22]} 37. Qxd3 {[%emt 0:00:17]} Bxb2 {[%emt 0:02:15]} 38. Ng5 {[%emt 0:01:09]} Bxa4 {[%emt 0:00:50]} 39. Bxh5 {[%emt 0:00:12]} Qe7 {[%emt 0:00:45]} 40. Bxf7+ {[%emt 0:00:00]} Kg7 {[%emt 0:00:00]} 41. e5 {[%emt 0:00:00]} Qd7 {[%emt 0:00:00]} 42. Qg6+ {[%emt 0:00:00]} Kf8 {[%emt 0:00:00]} 43. Nh7+ {[%emt 0:00:00]} 1-0